Cogmind - Beta 10.2 *** ADVENTURER MODE // 2022.02.17 @ 09:59:57 Player: woegarden Result: Destroyed by L-41 Fighter with Axe Performance ------------- Evolutions (3) 1500 Regions Visited (6) 1200 Robots Destroyed (6) 30 Value Destroyed (84) 84 Prototype IDs (2) 40 Alien Tech Used (0) 0 Bonus (57) 57 TOTAL SCORE: 2911 Bonus ------- Follower Combat Kills 76 Friendly Fire -19 Cogmind --------- Core Integrity 0/700 Matter 165/300 Energy 39/100 System Corruption 0% Temperature Cool (2) Movement Hovering (51) Location -7/Factory Parts ------- > --- POWER (2) -------- (None) > --- PROPULSION (2) --- Improved Hover Unit Aerolev Unit > --- UTILITY (7) ------ Medium Storage Unit Signal Interpreter > --- WEAPON (2) ------- (None) > --- INVENTORY (8) ---- Improved Hover Unit Coolant Injector Advanced Terrain Scan Processor Transmission Jammer Advanced ECM Suite Improved Medium Armor Plating Peak State ------------ > --- POWER ------------ Light Nuclear Core Improved Deuterium Engine > --- PROPULSION ------- Gravmag System Gravmag System > --- UTILITY ---------- Weight Redist. System Advanced Sensor Array Signal Interpreter Improved Terrain Scanner Advanced ECM Suite Hacking Suite System Shield > --- WEAPON ----------- Arc Projector Datajack > --- INVENTORY -------- Medium Storage Unit Terrain Scan Processor Transmission Jammer Cloaking Device [Rating: 40] Favorites ----------- Power Light Ion Engine Engine Light Ion Engine Power Core Light Nuclear Core Propulsion Aluminum Leg Leg Aluminum Leg Hover Unit Gravmag System Utility Small Storage Unit Device Improved Terrain Scanner Storage Small Storage Unit Processor Signal Interpreter Hackware Hacking Suite Weapon Light Assault Rifle Energy Gun Medium Laser Ballistic Gun Light Assault Rifle Ballistic Cannon Flak Cannon Launcher Rocket Launcher Special Melee Weapon Datajack Build | -11 -10 -10 -10 -9 -8 -7 ------- Run | Scr Mat Min Exi Min Mat Fac Slots Evolved 6 | . . . . . 4 2 Power 1 | . . . . . 1 . Propulsion . | . . . . . . . Utility 5 | . . . . . 3 2 Weapon . | . . . . . . . Parts Attached 40 | 6 . 1 1 2 17 13 Power 9 | 1 . . 1 1 5 1 Engine 6 | 1 . . 1 . 3 1 Core 3 | . . . . 1 2 . Reactor . | . . . . . . . Propulsion 9 | 2 . . . . 2 5 Treads . | . . . . . . . Leg 2 | 2 . . . . . . Wheel . | . . . . . . . Hover 7 | . . . . . 2 5 Flight . | . . . . . . . Utility 13 | 1 . . . 1 6 5 Device 8 | . . . . 1 4 3 Storage 2 | 1 . . . . . 1 Processor 1 | . . . . . 1 . Hackware 2 | . . . . . 1 1 Protection . | . . . . . . . Artifact . | . . . . . . . Weapon 9 | 2 . 1 . . 4 2 Energy Gun 4 | . . 1 . . 2 1 Energy Cannon . | . . . . . . . Ballistic Gun 2 | 2 . . . . . . Ballistic Cannon 1 | . . . . . 1 . Launcher 1 | . . . . . 1 . Special Weapon . | . . . . . . . Impact Weapon . | . . . . . . . Slashing Weapon . | . . . . . . . Piercing Weapon . | . . . . . . . Special Melee Weapon 1 | . . . . . . 1 Unidentified Prototypes 2 | . . . . . 1 1 Parts Lost 12 | . . . . . 1 11 Power 2 | . . . . . . 2 Propulsion 2 | . . . . . . 2 Utility 6 | . . . . . 1 5 Weapon 2 | . . . . . . 2 Highest Loss Streak 11 | . . . . . 1 11 Average Slot Usage (%) 87 | . 85 85 84 91 86 89 Engine 10 | . 14 14 13 14 2 3 Core 2 | . . . . . 11 8 Leg 20 | . 28 28 28 28 3 . Hover 3 | . . . . . 14 13 Device 7 | . . . . 6 21 22 Storage 11 | . 14 14 14 14 6 4 Processor 2 | . . . . . 9 7 Hackware 2 | . . . . . 2 14 Energy Gun 10 | . . 8 14 14 9 5 Ballistic Gun 11 | . 28 19 14 14 . . Special Melee Weapon 1 | . . . . . . 5 Naked Turns . | . . . . . . . Heaviest Build 33 | 10 10 10 10 13 19 33 Greatest Support 28 | 20 20 20 20 20 20 28 Greatest Overweight (x) 6 | . . . . . 1 6 Average Overweight (x) . | . . . . . . . Largest Inventory Capacity 8 | 6 6 6 6 6 6 8 Average Capacity 6 | 5 6 6 6 6 5 6 Most Carried 7 | 4 . 4 6 6 6 7 Average Carried 3 | . . 2 3 4 3 3 Final Capacity 8 | 6 6 6 6 6 4 8 Final Carried 6 | . . 3 3 6 4 6 Class Distribution -------------------- 73% | Mutant 8% | Hacker-Assassin 5% | Hacker-Ninja 4% | Hacker-Scout Dominant Class ---------------- Mutant | -10/Materials Mutant | -10/Mines Mutant | -10/Exiles Mutant | -9/Mines Hacker-Scout | -8/Materials Hacker-Assassin | -7/Factory Resources | -11 -10 -10 -10 -9 -8 -7 ----------- Run | Scr Mat Min Exi Min Mat Fac Matter Collected 426 | 141 . 44 . 103 138 . Remotely . | . . . . . . . Salvage Created 164 | . . . . 85 79 . Parts 16 | . . . . 7 9 . Haulers Intercepted 1 | . . . . . 1 . Recyclers Shooed 1 | . . . . . 1 . Parts Field Recycled . | . . . . . . . Retrieved Matter . | . . . . . . . Parts Self-Destructed . | . . . . . . . Prevented . | . . . . . . . Kills | -11 -10 -10 -10 -9 -8 -7 ------- Run | Scr Mat Min Exi Min Mat Fac Combat Hostiles Destroyed 4 | . . . . 4 . . Guns 4 | . . . . 4 . . Classes Destroyed 4 | . . . . 2 2 . Builder 1 | . . . . . 1 . Hauler 1 | . . . . . 1 . Swarmer 3 | . . . . 3 . . Grunt 1 | . . . . 1 . . Best Kill Streak 3 | . . . . 3 1 . Combat Bots Only 3 | . . . . 3 . . Max Kills in Single Turn 1 | . . . . 1 1 . Gunslinging . | . . . . . . . Exploded . | . . . . . . . Melee . | . . . . . . . Uniques/NPCs Destroyed . | . . . . . . . Combat | -11 -10 -10 -10 -9 -8 -7 -------- Run | Scr Mat Min Exi Min Mat Fac Damage Taken 1530 | . . 2 . 55 56 1417 Core 740 | . . . . 14 11 715 Absorbed by Shields . | . . . . . . . Core Remaining (%) 97 | 100 . . . 94 98 . Volleys Fired 26 | . . . 1 11 14 . Largest 2 | . . . 2 2 2 . Hottest 94 | . . . 70 70 94 . Shots Fired 41 | . . . 2 22 17 . Gun 38 | . . . 2 22 14 . Cannon 3 | . . . . . 3 . Launcher . | . . . . . . . Special . | . . . . . . . Kinetic 15 | . . . 1 11 3 . Thermal 24 | . . . 1 11 12 . Explosive . | . . . . . . . Electromagnetic 2 | . . . . . 2 . Robot Hit Streak 19 | . . . . 18 19 . Robot Miss Streak 4 | . . . . . 4 . Penetration Max . | . . . . . . . Secondary Targets 2 | . . . . 2 . . Max Gunslinging Chain 1 | . . . . 1 . . Shots Hit Robots 33 | . . . . 18 14 1 Core Hits 17 | . . . . 9 8 . Critical Hits . | . . . . . . . Critical Kills . | . . . . . . . Critical Parts Destroyed . | . . . . . . . Melee Attacks 1 | . . . . . . 1 Impact . | . . . . . . . Slashing . | . . . . . . . Piercing . | . . . . . . . Sneak Attacks 1 | . . . . . . 1 Combat Hostiles . | . . . . . . . Follow-up Attacks . | . . . . . . . Damage Inflicted 393 | . . 9 . 189 195 . Guns 345 | . . . . 189 156 . Cannons 39 | . . . . . 39 . Explosions . | . . . . . . . Melee . | . . . . . . . Ramming 9 | . . 9 . . . . Kinetic 101 | . . . . 62 39 . Thermal 249 | . . . . 127 122 . Explosive . | . . . . . . . Electromagnetic 34 | . . . . . 34 . Impact . | . . . . . . . Slashing . | . . . . . . . Piercing . | . . . . . . . Highest Corruption . | . . . . . . . Average Corruption . | . . . . . . . Corruption Purged . | . . . . . . . Overload Shots . | . . . . . . . Overflow Damage . | . . . . . . . Projectiles . | . . . . . . . Explosions . | . . . . . . . Melee . | . . . . . . . Knockbacks 2 | . . . . . 2 . Impact . | . . . . . . . Kinetic 2 | . . . . . 2 . Secondary . | . . . . . . . Self-Inflicted Damage 2 | . . 2 . . . . Shots . | . . . . . . . Rammed 2 | . . 2 . . . . Targets Rammed 3 | . . 3 . . . . Kicked 1 | . . 1 . . . . Crushed . | . . . . . . . Highest Temperature 90 | . . . 30 90 81 5 Average Temperature 29 | . . . 19 33 29 4 Received Heat Transfer 621 | . . . . . . 621 Siege Activations . | . . . . . . . Robots Corrupted . | . . . . . . . Combat Hostiles . | . . . . . . . Parts Fried . | . . . . . . . Impact Corruptions . | . . . . . . . Robots Melted . | . . . . . . . Combat Hostiles . | . . . . . . . Parts Melted . | . . . . . . . Heat Transferred 740 | . . . . 370 370 . Parts Sabotaged . | . . . . . . . Parts Stolen . | . . . . . . . Parts Stripped . | . . . . . . . Power Chain Reactions . | . . . . . . . Missiles Intercepted . | . . . . . . . Alert | -11 -10 -10 -10 -9 -8 -7 ------- Run | Scr Mat Min Exi Min Mat Fac Peak Influence 102 | . 15 4 . 70 98 102 Initial 37 | . . 4 . . 6 37 Average 25 | . 11 1 . 40 49 37 Maximum Alert Level . | . . . . . . . Low Security (%) 100 | 100 100 100 . 100 100 100 Level 1 . | . . . . . . . Level 2 . | . . . . . . . Level 3 . | . . . . . . . Level 4 . | . . . . . . . Level 5 . | . . . . . . . High Security . | . . . . . . . Max Security . | . . . . . . . Squads Dispatched 3 | . . . . . 1 2 Investigation 1 | . . . . . 1 . Extermination . | . . . . . . . Reinforcement 2 | . . . . . . 2 Assault . | . . . . . . . Garrison . | . . . . . . . Intercept . | . . . . . . . Construction Impeded . | . . . . . . . Haulers Reinforced . | . . . . . . . Stealth | -11 -10 -10 -10 -9 -8 -7 --------- Run | Scr Mat Min Exi Min Mat Fac Distress Signals 2 | . 1 . . . 1 . Communications Jammed . | . . . . . . . Distress Signals . | . . . . . . . Times Spotted 26 | . 2 . . 3 8 13 Peak Tracking Total 8 | . 3 . . 3 8 6 Tactical Retreats 4 | . . . . . 1 3 Traps | -11 -10 -10 -10 -9 -8 -7 ------- Run | Scr Mat Min Exi Min Mat Fac Traps Triggered 1 | . . . . . . 1 Indirectly . | . . . . . . . Trap Hack Attempts 2 | . . . . . . 2 Triggered . | . . . . . . . Disarmed . | . . . . . . . Reprogrammed 1 | . . . . . . 1 Reused . | . . . . . . . Traps Extracted . | . . . . . . . Installed . | . . . . . . . Triggered . | . . . . . . . Machines | -11 -10 -10 -10 -9 -8 -7 ---------- Run | Scr Mat Min Exi Min Mat Fac Machines Disabled . | . . . . . . . Max in Single Turn . | . . . . . . . Machines Sabotaged . | . . . . . . . Garrisons Compromised . | . . . . . . . Overloaded Fab Kills . | . . . . . . . Fab Network Shutdowns . | . . . . . . . Hacking | -11 -10 -10 -10 -9 -8 -7 --------- Run | Scr Mat Min Exi Min Mat Fac Machines Accessed 10 | . . . 4 . 2 4 Terminals 3 | . . . . . 2 1 Fabricators 1 | . . . . . . 1 Repair Stations 1 | . . . . . . 1 Recycling Units 1 | . . . . . . 1 Scanalyzers . | . . . . . . . Garrison Access . | . . . . . . . Total Hacks 64 | . . . 49 . 7 8 Successful 60 | . . . 49 . 4 7 Failed 4 | . . . . . 3 1 Catastrophic . | . . . . . . . Database Lockouts . | . . . . . . . Manual . | . . . . . . . Terminals 9 | . . . . . 7 2 Fabricators 1 | . . . . . . 1 Repair Stations 3 | . . . . . . 3 Recycling Units 2 | . . . . . . 2 Scanalyzers . | . . . . . . . Garrison Access . | . . . . . . . Terminal Hacks 54 | . . . 49 . 4 1 Record 51 | . . . 49 . 2 . Surveillance Status 2 | . . . . . 1 1 Recall Investigation 1 | . . . . . 1 . Fabricator Hacks 1 | . . . . . . 1 Network Status 1 | . . . . . . 1 Repair Station Hacks 3 | . . . . . . 3 Scan Component 2 | . . . . . . 2 Repair 1 | . . . . . . 1 Recycling Unit Hacks 2 | . . . . . . 2 Retrieve Components 2 | . . . . . . 2 Scanalyzer . | . . . . . . . Garrison Access Hacks . | . . . . . . . Unauthorized Hacks . | . . . . . . . Terminals . | . . . . . . . Fabricators . | . . . . . . . Repair Stations . | . . . . . . . Recycling Units . | . . . . . . . Scanalyzers . | . . . . . . . Garrison Access . | . . . . . . . Data Cores Recovered . | . . . . . . . Used . | . . . . . . . Hacking Detections 6 | . . . . . 2 4 Full Trace Events 1 | . . . . . 1 . Feedback Events . | . . . . . . . Feedback Blocked . | . . . . . . . Robot Schematics Acquired . | . . . . . . . Robots Built . | . . . . . . . Matter . | . . . . . . . Time . | . . . . . . . Total Robot Build Rating . | . . . . . . . Part Schematics Acquired . | . . . . . . . Parts Built . | . . . . . . . Matter . | . . . . . . . Time . | . . . . . . . Total Part Build Rating . | . . . . . . . Parts Repaired 1 | . . . . . . 1 Time 16 | . . . . . . 16 Parts Recycled . | . . . . . . . Recycled Matter . | . . . . . . . Retrieved Matter . | . . . . . . . Retrieved Components 3 | . . . . . . 3 Parts Scanalyzed . | . . . . . . . Part Schematics Acquired . | . . . . . . . Parts Damaged . | . . . . . . . Bothacking | -11 -10 -10 -10 -9 -8 -7 ------------ Run | Scr Mat Min Exi Min Mat Fac Used RIF Installer . | . . . . . . . Robots Hacked 1 | . . . . . . 1 Non-combat 1 | . . . . . . 1 Combat . | . . . . . . . Robot Hacks Applied 1 | . . . . . . 1 parse_system 1 | . . . . . . 1 Relay Couplers Released . | . . . . . . . Robots Rewired . | . . . . . . . Allies Hacked . | . . . . . . . Hacks Repelled . | . . . . . . . Allies | -11 -10 -10 -10 -9 -8 -7 -------- Run | Scr Mat Min Exi Min Mat Fac Total Allies 2 | . . . . 2 . . Largest Group 2 | . . . . 2 2 . Highest-Rated Group 24 | . . . . 24 24 . Highest-Rated Ally 16 | . . . . 16 16 . Total Orders . | . . . . . . . Ally Attacks 12 | . . . . . 12 . Total Damage 140 | . . . . . 140 . Kills 3 | . . . . . 3 . Allies Corrupted . | . . . . . . . Allies Melted . | . . . . . . . Intel | -11 -10 -10 -10 -9 -8 -7 ------- Run | Scr Mat Min Exi Min Mat Fac Robot Analysis Total . | . . . . . . . Derelict Logs Recovered 4 | . . 2 . 2 . . Drone Launches . | . . . . . . . Drone Recoveries . | . . . . . . . Exploration | -11 -10 -10 -10 -9 -8 -7 ------------- Run | Scr Mat Min Exi Min Mat Fac Turns Passed 3371 | 48 43 910 750 693 281 646 Spaces Moved 2856 | 39 36 751 619 547 295 569 Core 61 | 14 . . . . . 47 Treads . | . . . . . . . Legs 2014 | 25 36 751 619 547 36 . Wheels . | . . . . . . . Hover 781 | . . . . . 259 522 Flight . | . . . . . . . Fastest Speed 50 | 50 120 120 120 120 56 51 Average Speed 107 | 94 120 120 120 120 67 86 Slowest Speed 350 | 120 120 120 120 120 120 350 Overloaded Moves . | . . . . . . . Propulsion Burnouts . | . . . . . . . Robots Hopped . | . . . . . . . Cave-ins Triggered . | . . . . . . . Exploration Rate (%) 48 | 4 11 97 92 97 24 14 Regions Visited 6 Branch Regions 3 Pre-discovered Areas 1 | . . . 1 . . . Known Exits Taken 1 | . . . . . 1 . Unknown Exits Taken 5 | 1 1 1 1 1 . . Scrap Searched 4 | . . 2 . 2 . . Spaces Dug . | . . . . . . . Terrain Destroyed . | . . . . . . . Melee . | . . . . . . . Projectile . | . . . . . . . AOE . | . . . . . . . Terrain Rammed . | . . . . . . . Walls Destroyed . | . . . . . . . Machines Disabled . | . . . . . . . Actions | -11 -10 -10 -10 -9 -8 -7 --------- Run | Scr Mat Min Exi Min Mat Fac Total 3122 | 50 36 759 626 564 363 724 Wait 111 | . 1 . . . 4 106 Move 2850 | 38 35 750 618 546 294 569 Hop . | . . . . . . . Pick Up 44 | 6 . 4 3 4 16 11 Fast Attach 6 | . . . . 1 2 3 Attach 22 | 6 . . 1 1 8 6 Detach 5 | . . . . . 3 2 Swap 12 | . . 1 . . 7 4 Drop 27 | . . 1 3 1 15 7 Fire 26 | . . . 1 11 14 . Melee 1 | . . . . . . 1 Ram . | . . . . . . . Kick 3 | . . 3 . . . . Crush . | . . . . . . . Escape Stasis 13 | . . . . . . 13 Rewire . | . . . . . . . Trap 2 | . . . . . . 2 Miscellaneous . | . . . . . . . Route ------- -11/Scrapyard -10/Materials -10/Mines (discovered 3 exits: [*Mat x2] / *Exi) -10/Exiles (discovered 2 exits: [*Min x2]) -9/Mines (discovered 2 exits: *Mat x2) -8/Materials (discovered 2 exits: *Fac x2) -7/Factory History --------- Turn | Location | Event 16 | -11/Scrapyard | Discovered new exit (range 14) 49 | -11/Scrapyard | Entered Materials 49 | -10/Materials | Discovered new exit (range 8) 92 | -10/Materials | Entered Mines 151 | -10/Mines | Discovered new exit (range 15) 264 | -10/Mines | Discovered new exit (range 5) 286 | -10/Mines | Learned location of 1 exit from Materials 316 | -10/Mines | Build established: Mutant 391 | -10/Mines | Learned Materials stockpile data 454 | -10/Mines | Deemed a non-threat by the Exiles lab entrance 454 | -10/Mines | Discovered new exit (range 5) 1002 | -10/Mines | Entered Exiles 1029 | -10/Exiles | Discovered new exit (range 15) 1048 | -10/Exiles | Met 8R-AWN 1071 | -10/Exiles | Met EX-HEX 1130 | -10/Exiles | Met EX-DEC 1179 | -10/Exiles | Visited The Gauntlet 1342 | -10/Exiles | Learned location of Zion (-7) 1394 | -10/Exiles | Discovered new exit (range 10) 1502 | -10/Exiles | Met EX-BIN 1752 | -10/Exiles | Entered Mines 1969 | -9/Mines | Discovered new exit (range 7) 1970 | -9/Mines | Learned Materials security intel 1979 | -9/Mines | Received a Rocket Launcher from a helpful Derelict 2050 | -9/Mines | Learned Materials garrison access intel 2141 | -9/Mines | Joined a pair of Derelicts in attacking an 0b10 outpost 2207 | -9/Mines | Found a hidden stash of uninstalled traps 2409 | -9/Mines | Discovered new exit (range 6) 2433 | -9/Mines | Assisted by bots powering up and referring to "LRC-V3" 2445 | -9/Mines | Entered Materials 2445 | -8/Materials | Accompanied by 2 allies 2445 | -8/Materials | Evolved 4 slots: Power x1, Utility x3 2446 | -8/Materials | Identified exit to Factory 2449 | -8/Materials | Loaded intel: 1 garrison access location 2693 | -8/Materials | Discovered exit to Factory (range 5) 2726 | -8/Materials | Entered Factory 2726 | -7/Factory | Evolved 2 slots: Utility x2 3023 | -7/Factory | Repaired Weight Redist. System 3336 | -7/Factory | Core integrity fell below 50% 3349 | -7/Factory | Core integrity fell below 20% 3368 | -7/Factory | Lost 11 parts (2p2n5u2w) 3372 | -7/Factory | Destroyed by L-41 Fighter with Axe Last Messages --------------- F020. 03247_ Acquired Adv. Terrain Scan Processor. 03266_ Adv. Sensor Array destroyed. 03271_ Gravmag System destroyed. 03271_ Lgt. Nuclear Core destroyed. 03277_ Arc Projector destroyed. 03282_ Gravmag System destroyed. 03286_ O-16 Technician: "IFF HANDSHAKE FAILED. SECURING TERMINAL." 03288_ Imp. Deuterium Engine destroyed. 03292_ ALERT: Hostiles spotted, dispatching reinforcements to Terminal F002. 03305_ Imp. Terrain Scanner destroyed. 03305_ Datajack destroyed. 03305_ Cloaking Device destroyed. 03326_ Acquired Imp. Hover Unit. 03335_ System Shield destroyed. 03337_ Hacking Suite destroyed. 03363_ Acquired Imp. Medium Armor Plating. 03370_ Acquired Prototype Hover Unit. 03371_ Identified Aerolev Unit. Map ----- +----------------------------------------------------+ | ???????????????????????????????? | | ???????????????????????????????? | | ???????????????????????????????? | | ???????????????????????????????? | | ???????????????????????????????? | | ???????????????????????????????? | | ???????????????????????????????? | | ???????????????????????????????? | | ???????????????????????????????? | | ???????????????????????????????? | | ???????????????????????????????? | | ???????????????????????????????? | | ???????????????????????????????? | | ???????????????????????????????? | | ???????????????????????????????? | | ???????????????????????????????? | | ???????????????????????????????? | | ???????????????????????????????? | | ???????????????????????????????? | | ??????????????????????????? ??? | | ?????##########??????????? # | | ?????# #??????????? # | | ?????# #??????????? # | | ?????# #??????????? # | | ?????# #??????????? # | | ?????# @!= #?????????? # | | ?????# l= #?????????? # | | ?????# g g #?????????? # | | ?????# gg #?????????? # | | ?????# Y #?????????? # | | ?????#####+############## # | | ???????# #?# ^ # | | ???????# ! ### # | | ???????# T ] # | | ???????# ! ### ==] # | | ???????# = #?# ^ == # | | ???????########### # | | ??????????# # """"""""" # | | ??????????? """" + ^ # | | ??????????? """" # """"""""" # | | ??????????? """" # # | | ??????????? """" + """"""""" # | | ??????????# # # | | ??????????######## # | | ??????????????#??# # | | ?????????????????# ###### | | ?????????????????# #????# ### | | ?????????????????# #????# #?? | | ????????????? ???#### #????# #?? | | ????????????????????# #?##?# #?? | +----------------------------------------------------+ Best States ------------- Heat Dissipation 34 Energy Generation 25 Energy Capacity 350 Matter Stores 300 Matter Capacity 300 Sight Range 16 Robot Scan Range 16 Terrain Scan Range 16 Terrain Scan Density 10 ECM Strength 3 Jamming Range 8 Cloak Strength 2 Additional Mass Support 6 Resistance: KI 20 Resistance: TH 20 Resistance: EX 20 Resistance: EM 20 Resistance: I 20 Resistance: S 20 Resistance: P 20 Evasion (%) 53 Offensive Hacking 20 Defensive Hacking 10 Item Schematics ----------------- None Robot Schematics ------------------ None Fabricated ------------ Nothing Alien Tech Used ----------------- None Achievements -------------- Hehehe Librarian Loot Pinata Made in Tau Ceti IV Novice Programmer Challenges ------------ None Game ------ Seed ShieldOmegaWarhead Manual? 0 Play Time 00:53:17 Cumulative 4.9 hours Start 2022.02.17 @ 09:06:47 End 2022.02.17 @ 09:59:57 Sessions 1 Manual Loads 0 Difficulty Adventurer Special Mode None Game No. 7 Rogue 0 Adventurer 7 Explorer 0 Win Type - Total 0 Types 0/0/0/0/0/0/0/0/0 Lore% 14 Gallery% 8 Achievement% 7 Wizard Run 0 Options --------- ASCII 0 Keyboard 0 Movement Mouse Keybinds 0 Fullscreen 1 Font 16/Proggy Map View 76x50 Tactical HUD 1 Map Filters NONE Filters NONE Steam 1 RUN: 955f3d23-359e-47c0-a16b-cf54b49c4f8c